fUST/lending_fUST_20250627
["ID","MTS","AMOUNT","RATE_DAILY","PERIOD"]
[367965499,1750978241695,-2155.09,0.00021639,2]
[367965501,1750978241705,-1128.29,0.00021639,2]
[367965503,1750978241714,-460.0,0.00021639,2]
[367965505,1750978241723,-500.0,0.00021639,2]
[367965507,1750978241733,-489.64,0.00021639,2]
[367965509,1750978241742,-460.0,0.00021639,2]
[367965511,1750978241751,-659.17,0.00021639,2]
[367965513,1750978241761,-460.0,0.00021639,2]
[367965515,1750978241770,-1750.06,0.00021639,2]
[367965517,1750978241779,-460.0,0.00021639,2]
[367965519,1750978241789,-460.0,0.00021639,2]
[367965521,1750978241798,-460.0,0.00021639,2]
[367965523,1750978241807,-1062.5,0.00021639,2]
[367965525,1750978241816,-1509.46,0.00021639,2]
[367965527,1750978241825,-3845.72,0.00021639,2]
[367965529,1750978241834,-460.0,0.00021639,2]
[367965530,1750978241843,-435.64755293,0.00021639,2]
[367965532,1750978241852,-460.0,0.0002164,2]
[367965534,1750978241862,-924.6,0.0002164,2]
[367965536,1750978241871,-460.0,0.0002164,2]
[367965538,1750978241881,-500.0,0.0002164,2]
[367965540,1750978241891,-500.0,0.0002164,2]
[367965542,1750978241900,-500.0,0.0002164,2]
[367965544,1750978241911,-460.51253166,0.00021641,2]
[367965546,1750978241920,-460.0,0.00021641,2]
[367965548,1750978241929,-460.54260073,0.00021641,2]
[367965550,1750978241938,-460.0,0.00021641,2]
[367965552,1750978241948,-381.47508225,0.00021641,2]
[367965554,1750978241957,-430.0,0.00021641,2]
[367965556,1750978241966,-177.58599281,0.00021641,2]
[367965558,1750978241975,-460.0,0.00021641,2]
[367965560,1750978241985,-460.0,0.00021641,2]
[367965562,1750978241994,-460.0,0.00021641,2]
[367965564,1750978242003,-460.0,0.00021641,2]
[367965566,1750978242013,-460.0,0.00021641,2]
[367965568,1750978242022,-460.0,0.00021641,2]
[367965570,1750978242031,-460.0,0.00021641,2]
[367965572,1750978242040,-460.0,0.00021641,2]
[367965574,1750978242050,-460.0,0.00021641,2]
[367965576,1750978242060,-460.0,0.00021641,2]
[367965578,1750978242071,-460.0,0.00021641,2]
[367965580,1750978242080,-460.0,0.00021641,2]
[367965582,1750978242090,-460.0,0.00021641,2]
[367965584,1750978242099,-460.0,0.00021641,2]
[367965586,1750978242109,-460.0,0.00021641,2]
[367965587,1750978242118,-460.0,0.00021641,2]
[367965589,1750978242127,-349.67968111,0.00021641,2]
[367965591,1750978242136,-460.0,0.00021641,2]
[367965593,1750978242146,-460.0,0.00021641,2]
[367965595,1750978242156,-460.0,0.00021641,2]
[367965597,1750978242165,-406.0,0.00021641,2]
[367965599,1750978242174,-556.66,0.00021641,2]
[367965601,1750978242183,-460.0,0.00021641,2]
[367965603,1750978242193,-460.0,0.00021641,2]
[367965605,1750978242201,-460.0,0.00021641,2]
[367965607,1750978242210,-460.0,0.00021641,2]
[367965609,1750978242220,-460.0,0.00021641,2]
[367965611,1750978242229,-460.0,0.00021641,2]
[367965613,1750978242238,-460.0,0.00021641,2]
[367965615,1750978242247,-460.0,0.00021641,2]
[367965617,1750978242257,-460.0,0.00021641,2]
[367965619,1750978242266,-151.0,0.00021643,2]
[367965621,1750978242275,-230.39526265,0.00021643,2]
[367965624,1750978242286,-151.0,0.00021643,2]
[367965627,1750978242295,-500.0,0.00021643,2]
[367965629,1750978242305,-230.24506774,0.00021661,2]
[367965631,1750978242314,-160.0,0.00021661,2]
[367965632,1750978242323,-836.92866116,0.00021661,2]
[367965634,1750978242334,-160.0,0.00021661,2]
[367965636,1750978242343,-500.0,0.0002167,2]
[367965638,1750978242352,-469.03557909,0.00021698,2]
[367965640,1750978242363,-2000.0,0.00021846,2]
[367965644,1750978242374,-18000.0,0.00021882,2]
[367965646,1750978242383,-399.0,0.0002189,2]
[367965647,1750978242392,-2559.0,0.000219,2]
[367965649,1750978242402,-2559.0,0.000219,2]
[367965651,1750978242412,-2559.0,0.000219,2]
[367965653,1750978242421,-2559.0,0.000219,2]
[367965655,1750978242431,-2559.0,0.000219,2]
[367965657,1750978242440,-2559.0,0.000219,2]
[367965659,1750978242450,-2559.0,0.000219,2]
[367965661,1750978242459,-2559.0,0.000219,2]
[367965663,1750978242469,-2559.0,0.000219,2]
[367965666,1750978242478,-2559.0,0.000219,2]
[367965668,1750978242488,-4931.32544874,0.000219,2]
[367965670,1750978242497,-711.45805937,0.000219,6]
[367965672,1750978242507,-460.0,0.00021901,2]
[367965674,1750978242516,-461.47826145,0.00021901,2]
[367965676,1750978242526,-460.0,0.00021901,2]
[367965678,1750978242535,-648.52,0.00021901,2]
[367965679,1750978242544,-460.0,0.00021901,2]
[367965681,1750978242558,-638.13,0.00021901,2]
[367965683,1750978242569,-733.86,0.00021901,2]
[367965685,1750978242578,-3165.41,0.00021901,2]
[367965687,1750978242588,-575.71,0.00021901,2]
[367965689,1750978242598,-460.0,0.00021901,2]
[367965691,1750978242607,-512.58275084,0.00021902,2]
[367965693,1750978242617,-460.0,0.00021902,2]
[367965695,1750978242629,-460.0,0.00021902,2]
[367965697,1750978242640,-460.0,0.00021902,2]
[367965699,1750978242650,-460.0,0.00021902,2]
[367965701,1750978242660,-460.0,0.00021902,2]
[367965703,1750978242669,-460.0,0.00021902,2]
[367965705,1750978242678,-460.0,0.00021902,2]
[367965707,1750978242687,-460.0,0.00021902,2]
[367965709,1750978242698,-2879.31,0.00021902,2]
[367965711,1750978242707,-460.0,0.00021902,2]
[367965713,1750978242716,-460.0,0.00021902,2]
[367965715,1750978242725,-460.0,0.00021902,2]
[367965717,1750978242735,-3334.95,0.00021902,2]
[367965719,1750978242744,-460.0,0.00021902,2]
[367965720,1750978242754,-776.64,0.00021902,2]
[367965722,1750978242763,-460.0,0.00021902,2]
[367965724,1750978242774,-597.67,0.00021902,2]
[367965726,1750978242784,-387.8954893,0.00021902,2]
[367965728,1750978242793,-515.65,0.00021902,2]
[367965730,1750978242803,-2251.39,0.00021902,2]
[367965732,1750978242812,-460.0,0.00021902,2]
[367965734,1750978242822,-460.0,0.00021902,2]
[367965736,1750978242831,-460.0,0.00021902,2]
[367965738,1750978242840,-2301.72,0.00021902,2]
[367965740,1750978242850,-460.0,0.00021902,2]
[367965742,1750978242859,-3388.11,0.00021902,2]
[367965744,1750978242868,-460.0,0.00021902,2]
[367965746,1750978242877,-460.0,0.00021902,2]
[367965748,1750978242886,-655.41,0.00021902,2]
[367965750,1750978242895,-460.0,0.00021902,2]
[367965752,1750978242905,-460.0,0.00021902,2]
[367965753,1750978242914,-1517.77,0.00021902,2]
[367965755,1750978242923,-400.0,0.00021902,2]
[367965757,1750978242933,-460.0,0.00021902,2]
[367965759,1750978242943,-724.03,0.00021902,2]
[367965761,1750978242952,-460.0,0.00021902,2]
[367965763,1750978242962,-460.0,0.00021902,2]
[367965765,1750978242971,-877.44,0.00021902,2]
[367965767,1750978242981,-794.74,0.00021902,2]
[367965769,1750978242991,-460.0,0.00021902,2]
[367965771,1750978243000,-2175.7,0.00021902,2]
[367965773,1750978243009,-499.98,0.00021902,2]
[367965775,1750978243019,-735.72,0.00021902,2]
[367965777,1750978243028,-460.0,0.00021902,2]
[367965779,1750978243037,-460.0,0.00021902,2]
[367965780,1750978243046,-460.0,0.00021902,2]
[367965782,1750978243055,-460.0,0.00021902,2]
[367965784,1750978243065,-157.73218912,0.00021902,2]
[367965786,1750978243074,-271.41674087,0.00021902,2]
[367965788,1750978243083,-460.0,0.00021902,2]
[367965790,1750978243093,-460.0,0.00021902,2]
[367965792,1750978243103,-460.0,0.00021902,2]
[367965794,1750978243112,-160.75094548,0.00021903,2]
[367965796,1750978243123,-787.64090698,0.00021903,2]
[367965798,1750978243132,-460.0,0.00021903,2]
[367965800,1750978243141,-460.0,0.00021903,2]
[367965802,1750978243151,-460.0,0.00021903,2]
[367965804,1750978243160,-460.0,0.00021903,2]
[367965806,1750978243170,-401.33721209,0.00021903,2]
[367965808,1750978243179,-460.0,0.00021903,2]
[367965809,1750978243188,-460.0,0.00021903,2]
[367965811,1750978243198,-460.0,0.00021903,2]
[367965813,1750978243208,-460.0,0.00021903,2]
[367965815,1750978243217,-460.0,0.00021903,2]
[367965817,1750978243227,-460.0,0.00021903,2]
[367965819,1750978243236,-460.0,0.00021903,2]
[367965821,1750978243245,-460.0,0.00021903,2]
[367965823,1750978243254,-380.0,0.00021903,2]
[367965825,1750978243264,-460.0,0.00021903,2]
[367965827,1750978243273,-460.0,0.00021903,2]
[367965829,1750978243282,-460.0,0.00021903,2]
[367965831,1750978243291,-451.48385704,0.00021903,2]
[367965833,1750978243301,-609.13,0.00021903,2]
[367965834,1750978243310,-460.0,0.00021903,2]
[367965836,1750978243319,-460.0,0.00021903,2]
[367965838,1750978243329,-460.0,0.00021903,2]
[367965840,1750978243339,-460.0,0.00021903,2]
[367965842,1750978243348,-460.0,0.00021903,2]
[367965844,1750978243357,-460.0,0.00021903,2]
[367965846,1750978243366,-350.0,0.00021903,2]
[367965848,1750978243376,-460.0,0.00021903,2]
[367965850,1750978243385,-460.0,0.00021903,2]
[367965852,1750978243394,-460.0,0.00021903,2]
[367965854,1750978243403,-460.0,0.00021903,2]
[367965856,1750978243412,-513.58219566,0.00021903,2]
[367965858,1750978243421,-460.0,0.00021903,2]
[367965860,1750978243430,-460.0,0.00021903,2]
[367965862,1750978243439,-460.0,0.00021903,2]
[367965864,1750978243449,-460.0,0.00021903,2]
[367965865,1750978243457,-460.0,0.00021903,2]
[367965867,1750978243466,-460.0,0.00021903,2]
[367965869,1750978243476,-460.0,0.00021903,2]
[367965871,1750978243485,-705.82,0.00021903,2]
[367965873,1750978243494,-460.0,0.00021903,2]
[367965875,1750978243503,-460.0,0.00021903,2]
[367965877,1750978243512,-460.0,0.00021903,2]
[367965879,1750978243521,-460.0,0.00021903,2]
[367965881,1750978243530,-460.0,0.00021903,2]
[367965883,1750978243540,-554.04,0.00021903,2]
[367965885,1750978243549,-667.11,0.00021903,2]
[367965887,1750978243562,-717.96,0.00021903,2]
[367965889,1750978243571,-460.0,0.00021903,2]
[367965891,1750978243580,-460.0,0.00021903,2]
[367965893,1750978243589,-910.59,0.00021903,2]
[367965895,1750978243599,-460.0,0.00021903,2]
[367965897,1750978243608,-460.0,0.00021903,2]
[367965899,1750978243618,-460.0,0.00021903,2]
[367965901,1750978243629,-460.0,0.00021903,2]
[367965903,1750978243638,-460.0,0.00021903,2]
[367965905,1750978243647,-790.24,0.00021903,2]
[367965907,1750978243655,-460.0,0.00021903,2]
[367965909,1750978243665,-400.0,0.00021903,2]
[367965911,1750978243674,-460.0,0.00021903,2]
[367965912,1750978243683,-517.1,0.00021903,2]
[367965914,1750978243693,-460.0,0.00021903,2]
[367965916,1750978243702,-685.69,0.00021903,2]
[367965918,1750978243713,-984.99,0.00021903,2]
[367965920,1750978243722,-460.0,0.00021903,2]
[367965922,1750978243731,-593.55,0.00021903,2]
[367965924,1750978243740,-748.91,0.00021903,2]
[367965926,1750978243749,-460.0,0.00021903,2]
[367965928,1750978243758,-460.0,0.00021903,2]
[367965930,1750978243767,-882.98,0.00021903,2]
[367965932,1750978243777,-1410.71,0.00021903,2]
[367965934,1750978243786,-476.87,0.00021903,2]
[367965936,1750978243795,-460.0,0.00021903,2]
[367965938,1750978243804,-472.02,0.00021903,2]
[367965940,1750978243813,-460.0,0.00021903,2]
[367965955,1750978243939,-829.28,0.00021903,2]
[367965957,1750978243966,-460.0,0.00021903,2]
[367965959,1750978243976,-761.94,0.00021903,2]
[367965961,1750978243986,-941.72,0.00021903,2]
[367965963,1750978243995,-430.0,0.00021903,2]
[367965965,1750978244004,-460.0,0.00021903,2]
[367965967,1750978244014,-854.81,0.00021903,2]
[367965969,1750978244023,-460.0,0.00021903,2]
[367965971,1750978244032,-460.0,0.00021903,2]
[367965973,1750978244041,-623.28,0.00021903,2]
[367965975,1750978244051,-460.0,0.00021903,2]
[367965977,1750978244060,-430.0,0.00021904,2]
[367965979,1750978244069,-460.0,0.00021904,2]
[367965981,1750978244078,-460.0,0.00021904,2]
[367965983,1750978244088,-460.0,0.00021904,2]
[367965985,1750978244097,-540.0,0.00021904,2]
[367965987,1750978244107,-460.0,0.00021904,2]
[367965989,1750978244116,-460.0,0.00021904,2]
[367965991,1750978244125,-460.0,0.00021904,2]
[367965993,1750978244134,-460.0,0.00021904,2]
[367965994,1750978244143,-542.51,0.00021904,2]
[367965996,1750978244153,-370.0,0.00021904,2]
[367965998,1750978244163,-460.0,0.00021904,2]
[367966000,1750978244172,-460.0,0.00021904,2]
[367966002,1750978244181,-460.0,0.00021904,2]
[367966004,1750978244191,-460.0,0.00021904,2]
[367966006,1750978244200,-460.0,0.00021904,2]
[367966008,1750978244209,-460.0,0.00021904,2]
[367966010,1750978244218,-460.0,0.00021904,2]
[367966012,1750978244228,-648.21,0.00021904,2]
[367966014,1750978244237,-460.0,0.00021912,2]
[367966015,1750978244247,-460.0,0.00021912,2]
[367966016,1750978244256,-457.6974723,0.00021912,2]
[367966017,1750978244265,-460.0,0.00021912,2]
[367966018,1750978244274,-460.0,0.00021912,2]
[367966019,1750978244284,-460.0,0.00021912,2]
[367966020,1750978244293,-460.0,0.00021912,2]
[367966021,1750978244302,-593.99,0.00021912,2]
[367966022,1750978244311,-1191.61,0.00021912,2]
[367966023,1750978244320,-460.0,0.00021912,2]
[367966024,1750978244329,-465.37962827,0.00021912,2]
[367966025,1750978244339,-483.49,0.00021912,2]
[367966026,1750978244348,-460.0,0.00021912,2]
[367966027,1750978244357,-547.06,0.00021912,2]
[367966028,1750978244367,-460.0,0.00021912,2]
[367966029,1750978244376,-575.19,0.00021912,2]
[367966030,1750978244386,-5025.38,0.00021912,2]
[367966031,1750978244395,-460.0,0.00021912,2]
[367966032,1750978244404,-1246.32,0.00021912,2]
[367966033,1750978244413,-707.24,0.00021912,2]
[367966035,1750978244422,-1060.85,0.00021912,2]
[367966036,1750978244431,-460.0,0.00021912,2]
[367966038,1750978244440,-1774.62,0.00021912,2]
[367966040,1750978244449,-1056.17,0.00021912,2]
[367966042,1750978244459,-205.12440464,0.00021913,2]
[367966044,1750978244468,-467.77457106,0.00021913,2]
[367966046,1750978244477,-460.0,0.00021913,2]
[367966048,1750978244487,-460.0,0.00021913,2]
[367966050,1750978244496,-460.0,0.00021913,2]
[367966052,1750978244506,-460.0,0.00021913,2]
[367966054,1750978244515,-460.0,0.00021913,2]
[367966056,1750978244524,-460.0,0.00021913,2]
[367966058,1750978244534,-379.26560046,0.00021913,2]
[367966060,1750978244543,-460.0,0.00021913,2]
[367966062,1750978244554,-460.0,0.00021913,2]
[367966064,1750978244565,-460.0,0.00021913,2]
[367966066,1750978244574,-460.0,0.00021913,2]
[367966068,1750978244583,-460.0,0.00021913,2]
[367966070,1750978244594,-460.0,0.00021913,2]
[367966072,1750978244603,-460.0,0.00021913,2]
[367966074,1750978244612,-460.0,0.00021913,2]
[367966076,1750978244621,-390.0,0.00021913,2]
[367966078,1750978244632,-741.79,0.00021913,2]
[367966080,1750978244642,-460.0,0.00021913,2]
[367966082,1750978244651,-460.0,0.00021913,2]
[367966084,1750978244661,-460.0,0.00021913,2]
[367966086,1750978244670,-460.0,0.00021913,2]
[367966088,1750978244679,-460.0,0.00021913,2]
[367966090,1750978244689,-460.0,0.00021913,2]
[367966092,1750978244698,-460.0,0.00021913,2]
[367966094,1750978244707,-460.0,0.00021913,2]
[367966096,1750978244716,-460.0,0.00021913,2]
[367966098,1750978244725,-579.47,0.00021913,2]
[367966100,1750978244735,-257.62276215,0.00021913,2]
[367966102,1750978244744,-460.0,0.00021913,2]
[367966104,1750978244753,-460.0,0.00021913,2]
[367966106,1750978244762,-523.54,0.00021913,2]
[367966108,1750978244772,-644.48175959,0.00021913,2]
[367966110,1750978244781,-814.2,0.00021913,2]
[367966112,1750978244790,-635.97,0.00021913,2]
[367966114,1750978244800,-703.41,0.00021913,2]
[367966116,1750978244809,-460.0,0.00021913,2]
[367966118,1750978244818,-460.0,0.00021913,2]
[367966120,1750978244827,-460.0,0.00021913,2]
[367966122,1750978244836,-430.0,0.00021913,2]
[367966124,1750978244845,-619.42,0.00021913,2]
[367966126,1750978244855,-400.0,0.00021913,2]
[367966128,1750978244864,-460.0,0.00021913,2]
[367966130,1750978244873,-460.0,0.00021913,2]
[367966132,1750978244882,-460.0,0.00021913,2]
[367966134,1750978244892,-460.0,0.00021913,2]
[367966136,1750978244901,-460.0,0.00021913,2]
[367966138,1750978244911,-820.23,0.00021913,2]
[367966140,1750978244921,-460.0,0.00021913,2]
[367966142,1750978244930,-460.0,0.00021913,2]
[367966144,1750978244940,-310.0,0.00021913,2]
[367966146,1750978244949,-460.0,0.00021913,2]
[367966148,1750978244958,-460.0,0.00021913,2]
[367966150,1750978244967,-460.0,0.00021913,2]
[367966152,1750978244977,-502.53,0.00021913,2]
[367966154,1750978244987,-1550.64,0.00021913,2]
[367966156,1750978244996,-460.0,0.00021913,2]
[367966158,1750978245005,-518.55,0.00021913,2]
[367966160,1750978245014,-460.0,0.00021913,2]
[367966162,1750978245024,-876.65,0.00021913,2]
[367966164,1750978245033,-382.20325355,0.00021913,2]
[367966166,1750978245042,-877.63,0.00021913,2]
[367966168,1750978245052,-460.0,0.00021913,2]
[367966170,1750978245061,-460.0,0.00021913,2]
[367966172,1750978245071,-637.8,0.00021913,2]
[367966174,1750978245080,-460.0,0.00021913,2]
[367966176,1750978245089,-460.0,0.00021913,2]
[367966178,1750978245098,-2155.09,0.00021913,2]
[367966180,1750978245107,-1128.29,0.00021913,2]
[367966182,1750978245117,-460.0,0.00021913,2]
[367966184,1750978245127,-489.64,0.00021913,2]
[367966186,1750978245137,-460.0,0.00021913,2]
[367966188,1750978245146,-659.17,0.00021913,2]
[367966190,1750978245155,-460.0,0.00021913,2]
[367966192,1750978245164,-1750.06,0.00021913,2]
[367966194,1750978245173,-460.0,0.00021913,2]
[367966196,1750978245183,-460.0,0.00021913,2]
[367966198,1750978245192,-1062.5,0.00021913,2]
[367966200,1750978245201,-1509.46,0.00021913,2]
[367966202,1750978245210,-3845.72,0.00021913,2]
[367966204,1750978245219,-460.0,0.00021914,2]
[367966206,1750978245229,-924.6,0.00021914,2]
[367966208,1750978245238,-460.0,0.00021914,2]
[367966210,1750978245248,-255.63539804,0.00021915,2]
[367966212,1750978245257,-460.0,0.00021915,2]
[367966214,1750978245266,-460.0,0.00021915,2]
[367966216,1750978245275,-265.99500742,0.00021915,2]
[367966219,1750978245283,-460.0,0.00021915,2]
[367966222,1750978245292,-450.0,0.00021915,2]
[367966224,1750978245301,-460.0,0.00021915,2]
[367966227,1750978245310,-460.0,0.00021915,2]
[367966229,1750978245319,-460.0,0.00021915,2]
[367966231,1750978245329,-460.0,0.00021915,2]
[367966233,1750978245338,-460.0,0.00021915,2]
[367966235,1750978245347,-460.0,0.00021915,2]
[367966237,1750978245358,-460.0,0.00021915,2]
[367966239,1750978245368,-556.66,0.00021915,2]
[367966241,1750978245377,-460.0,0.00021915,2]
[367966243,1750978245387,-243.50396216,0.00021915,2]
[367966245,1750978245396,-460.0,0.00021915,2]
[367966247,1750978245405,-460.0,0.00021915,2]
[367966249,1750978245415,-460.0,0.00021915,2]
[367966251,1750978245424,-460.0,0.00021915,2]
[367966253,1750978245433,-460.0,0.00021915,2]
[367966255,1750978245442,-460.0,0.00021915,2]
[367966257,1750978245451,-406.0,0.00021917,2]
[367966259,1750978245462,-151.0,0.00021917,2]
[367966261,1750978245471,-151.0,0.00021917,2]
[367966263,1750978245482,-151.0,0.00021917,2]
[367966265,1750978245491,-151.0,0.00021917,2]
[367966267,1750978245500,-151.0,0.00021917,2]
[367966270,1750978245510,-500.0,0.00021917,2]
[367966272,1750978245519,-500.0,0.00021917,2]
[367966274,1750978245528,-150.0,0.00021918,2]
[367966276,1750978245537,-1000.0,0.0002192,5]
[367966278,1750978245546,-151.0,0.00021925,7]
[367966279,1750978245557,-151.393314,0.00021925,7]
[367966281,1750978245566,-151.0,0.00021925,7]
[367966283,1750978245575,-251.7745,0.00021925,7]
[367966285,1750978245584,-1000.0,0.0002194,5]
[367966287,1750978245594,-2137.04208688,0.00021943,2]
[367966289,1750978245605,-1000.0,0.0002196,5]
[367966291,1750978245614,-256.20095805,0.00021973,2]
[367966294,1750978245623,-171.19469755,0.00021973,2]
[367966295,1750978245636,-450.03615033,0.00021973,2]
[367966297,1750978245646,-500.60716057,0.00021973,2]
[367966300,1750978245655,-500.0,0.00021973,2]
[367966302,1750978245664,-500.0,0.00021973,2]
[367966304,1750978245674,-500.0,0.00021973,2]
[367966306,1750978245684,-500.0,0.00021973,2]
[367966308,1750978245693,-500.0,0.00021973,2]
[367966310,1750978245702,-500.0,0.00021973,2]
[367966312,1750978245711,-500.0,0.00021973,2]
[367966314,1750978245721,-500.0,0.00021973,2]
[367966316,1750978245732,-500.0,0.00021973,2]
[367966318,1750978245741,-581.33748376,0.00021973,2]
[367966320,1750978245750,-500.0,0.00021973,2]
[367966322,1750978245760,-586.08574951,0.00021973,2]
[367966324,1750978245770,-500.0,0.00021973,2]
[367966326,1750978245779,-500.0,0.00021973,2]
[367966328,1750978245788,-500.0,0.00021973,2]
[367966330,1750978245797,-500.0,0.00021973,2]
[367966332,1750978245806,-500.0,0.00021973,2]
[367966334,1750978245815,-500.0,0.00021973,2]
[367966336,1750978245825,-500.0,0.00021973,2]
[367966338,1750978245835,-500.0,0.00021973,2]
[367966340,1750978245844,-500.0,0.00021973,2]
[367966342,1750978245853,-151.0,0.00021973,7]
[367966344,1750978245862,-151.0,0.00021973,7]
[367966346,1750978245871,-1000.0,0.0002198,5]
[367966348,1750978245880,-173.68451147,0.00021999,2]
[367966350,1750978245889,-185.24494443,0.00021999,2]
[367966352,1750978245898,-647.31781771,0.00021999,2]
[367966354,1750978245908,-500.0,0.00022,8]
[367966356,1750978245917,-500.0,0.00022,8]
[367966358,1750978245928,-70196.38241217,0.00022,2]
[367966379,1750978246108,-500.0,0.00022,2]
[367966381,1750978246122,-74659.73904305,0.00022,2]
[367966599,1750978248350,-460.0,0.00021627,2]
[367966601,1750978248361,-232.13600239,0.00021628,2]
[367966608,1750978248418,-227.86399761,0.00021628,2]
[367966610,1750978248428,-460.0,0.00021628,2]
[367966611,1750978248438,-460.0,0.00021628,2]
[367966613,1750978248447,-460.0,0.00021629,2]
[367966616,1750978248457,-460.0,0.00021902,2]
[367966618,1750978248467,-3745.34041159,0.00022,2]
[367966641,1750978248687,-275.7,0.00021902,2]
[367966643,1750978248697,-247.1337513,0.00022,2]
[367966645,1750978248709,-2795.10654809,0.00022,2]
[367966647,1750978248720,-833.13662808,0.00022,2]
[367966649,1750978248732,-950.26397511,0.00022,2]
[367969610,1750979109403,165.508446,0.00013699,2]
[367969650,1750979432221,-298.7138,0.00019902,2]
[367969652,1750979432231,-324.0,0.00020074,2]
[367969654,1750979432241,-324.0,0.00020165,2]
[367969656,1750979432251,-165.163626,0.00020344,2]
[367969658,1750979432260,-406.0,0.00021104,2]
[367969660,1750979432270,-158.49393,0.0002121,2]
[367969662,1750979432279,-160.0,0.00021446,2]
[367969664,1750979432288,-324.0,0.00021466,2]
[367969666,1750979432298,-205.9231409,0.0002155,2]
[367969668,1750979432307,-324.0,0.00021552,2]
[367969670,1750979432317,-207.4,0.00021612,2]
[367969671,1750979432326,-362.23,0.00021614,10]
[367969673,1750979432335,-251.75141402,0.00021614,2]
[367969675,1750979432345,-300.0,0.0002162,2]
[367969677,1750979432354,-300.0,0.0002162,2]
[367969679,1750979432364,-1200.0,0.0002162,2]
[367969681,1750979432373,-460.0,0.00021621,2]
[367969683,1750979432383,-383.91248654,0.00021621,2]
[367969685,1750979432392,-460.0,0.00021621,2]
[367969686,1750979432401,-460.0,0.00021621,2]
[367969688,1750979432411,-460.0,0.00021621,2]
[367969690,1750979432421,-460.0,0.00021621,2]
[367969692,1750979432431,-460.0,0.00021621,2]
[367969694,1750979432441,-460.0,0.00021621,2]
[367969695,1750979432451,-412.49778849,0.00021621,2]
[367969696,1750979432461,-551.72,0.00021621,2]
[367969697,1750979432470,-460.0,0.00021621,2]
[367969698,1750979432479,-460.0,0.00021621,2]
[367969699,1750979432488,-460.0,0.00021621,2]
[367969700,1750979432498,-460.0,0.00021621,2]
[367969701,1750979432507,-460.0,0.00021621,2]
[367969702,1750979432516,-300.0,0.00021622,2]
[367969703,1750979432526,-460.0,0.00021623,2]
[367969704,1750979432536,-460.0,0.00021623,2]
[367969705,1750979432546,-460.0,0.00021623,2]
[367969706,1750979432555,-460.0,0.00021623,2]
[367969707,1750979432564,-460.0,0.00021623,2]
[367969708,1750979432573,-460.0,0.00021623,2]
[367969709,1750979432583,-460.0,0.00021623,2]
[367969710,1750979432592,-460.0,0.00021623,2]
[367969711,1750979432602,-460.0,0.00021623,2]
[367969712,1750979432611,-462.09959667,0.00021623,2]
[367969713,1750979432620,-460.0,0.00021623,2]
[367969714,1750979432630,-532.5,0.00021623,2]
[367969715,1750979432646,-460.0,0.00021623,2]
[367969716,1750979432660,-665.56,0.00021623,2]
[367969717,1750979432671,-460.0,0.00021623,2]
[367969718,1750979432681,-461.47826145,0.00021623,2]